[Event "22nd ECCC Women 2017"]
[Site "Antalya"]
[Date "2017.10.11"]
[Round "3"]
[White "Choisy, Mathilde"]
[Black "Isgandarova, Khayala"]
[Result "1/2-1/2"]
[ECO "C11"]
[WhiteElo "2162"]
[BlackElo "2242"]
[Annotator "ChessBase"]
[PlyCount "195"]
[EventType "team-tourn"]
[EventCountry "TUR"]
[SourceTitle "playchess.com"]
[Source "ChessBase"]
[SourceQuality "1"]
[WhiteTeam "Mulhouse Philidor"]
[BlackTeam "Anatolia"]
[TimeControl "40/5400+30:1800+30"]

1. e4 {[%emt 0:00:30]} e6 {[%emt 0:01:00]} 2. d4 {[%emt 0:00:30]} d5 {[%emt 0:00:30]} 3. Nc3 {[%emt 0:00:30]} Nf6 {[%emt 0:00:30]} 4. e5 {[%emt 0:00:30]} Nfd7 {[%emt 0:00:30]} 5. Nce2 {[%emt 0:00:00]} c5 {[%emt 0:00:30]} 6. c3 {[%emt 0:00:00]} Nc6 {[%emt 0:00:30]} 7. Nf3 {[%emt 0:00:00]} Qa5 {[%emt 0:18:30]} 8. a3 {[%emt 0:00:00]} cxd4 {[%emt 0:05:30]} 9. b4 {[%emt 0:00:00]} Qb6 {[%emt 0:03:30]} 10. cxd4 {[%emt 0:00:00]} a5 {[%emt 0:01:30]} 11. b5 {[%emt 0:00:30]} Qxb5 {[%emt 0:08:30]} 12. Nc3 {[%emt 0:00:30]} Qb6 {[%emt 0:00:00]} 13. Rb1 {[%emt 0:00:00]} Qd8 {[%emt 0:01:00]} 14. Bd3 {[%emt 0:01:00]} Be7 {[%emt 0:00:30]} 15. O-O {[%emt 0:02:30]} O-O {[%emt 0:04:30]} 16. Qc2 {[%emt 0:07:30]} f5 {[%emt 0:05:30]} 17. exf6 {[%emt 0:00:30]} Nxf6 {[%emt 0:00:00]} 18. Re1 {[%emt 0:11:30]} Bd6 {[%emt 0:12:00]} 19. Nb5 {[%emt 0:04:30]} h6 {[%emt 0:02:30]} 20. Qe2 {[%emt 0:12:30]} Bb8 {[%emt 0:15:34]} 21. Ne5 {[%emt 0:15:30]} Ne7 {[%emt 0:07:53]} 22. a4 {[%emt 0:03:30]} Bd7 {[%emt 0:04:02]} 23. Nxd7 {[%emt 0:06:30]} Qxd7 {[%emt 0:00:06]} 24. Ba3 {[%emt 0:04:30]} Rf7 {[%emt 0:02:06]} 25. Qxe6 {[%emt 0:04:30]} Qxe6 {[%emt 0:02:32]} 26. Rxe6 {[%emt 0:00:00]} Nc6 {[%emt 0:00:59]} 27. Bg6 {[%emt 0:08:26]} Rd7 {[%emt 0:00:52]} 28. g3 {[%emt 0:03:17]} Bc7 {[%emt 0:02:05]} 29. Bc5 {[%emt 0:05:04]} Nd8 {[%emt 0:00:56]} 30. Re2 {[%emt 0:05:24]} Rc8 {[%emt 0:00:14]} 31. Bf5 {[%emt 0:00:57]} Bb8 {[%emt 0:01:03]} 32. Bb6 {[%emt 0:01:34]} Nc6 {[%emt 0:00:27]} 33. Bxd7 {[%emt 0:01:10]} Nxd7 {[%emt 0:00:03]} 34. Bc5 {[%emt 0:00:00]} Nxc5 {[%emt 0:01:13]} 35. dxc5 {[%emt 0:00:00]} Ne5 {[%emt 0:00:19]} 36. Nd6 {[%emt 0:01:22]} Rxc5 {[%emt 0:00:10]} 37. Nxb7 {[%emt 0:00:20]} Rc8 {[%emt 0:00:42]} 38. Nxa5 {[%emt 0:01:19]} Bd6 {[%emt 0:00:34]} 39. Nb7 {[%emt 0:01:42]} Rb8 {[%emt 0:00:37]} 40. Kg2 {[%emt 0:00:00]} Nc4 {[%emt 0:01:03]} 41. Rb5 {[%emt 0:07:25]} Bf8 {[%emt 0:05:30]} 42. Re1 {[%emt 0:04:30]} Na3 {[%emt 0:06:35]} 43. Rb3 {[%emt 0:01:42]} Nc2 {[%emt 0:04:07]} 44. Rd1 {[%emt 0:01:09]} Nb4 {[%emt 0:01:14]} 45. Na5 {[%emt 0:11:05]} Ra8 {[%emt 0:00:08]} 46. Nb7 {[%emt 0:04:36]} Rb8 {[%emt 0:00:30]} 47. Na5 {[%emt 0:00:00]} Ra8 {[%emt 0:00:00]} 48. Rxb4 {[%emt 0:00:00]} Bxb4 {[%emt 0:00:08]} 49. Nc6 {[%emt 0:00:00]} Bc3 {[%emt 0:01:09]} 50. Ne7+ {[%emt 0:01:03]} Kf7 {[%emt 0:01:43]} 51. Nxd5 {[%emt 0:00:04]} Bb2 {[%emt 0:03:54]} 52. Rb1 {[%emt 0:00:12]} Bd4 {[%emt 0:01:16]} 53. Rb7+ {[%emt 0:00:49]} Kg6 {[%emt 0:00:20]} 54. Rb4 {[%emt 0:01:09]} Ba1 {[%emt 0:02:39]} 55. Rc4 {[%emt 0:00:47]} Ra5 {[%emt 0:00:39]} 56. Nf4+ {[%emt 0:00:32]} Kf5 {[%emt 0:00:26]} 57. Nd3 {[%emt 0:00:41]} Ke6 {[%emt 0:00:22]} 58. Nc5+ {[%emt 0:02:03]} Kd5 {[%emt 0:02:58]} 59. Nb3 {[%emt 0:00:03]} Kxc4 {[%emt 0:00:29]} 60. Nxa5+ {[%emt 0:00:30]} Kb4 {[%emt 0:00:30]} 61. Nc6+ {[%emt 0:00:00]} Kxa4 {[%emt 0:00:00]} 62. Ne7 {[%emt 0:00:54]} Kb5 {[%emt 0:00:00]} 63. Kf3 {[%emt 0:00:54]} Kc5 {[%emt 0:00:07]} 64. Ke4 {[%emt 0:00:57]} Kd6 {[%emt 0:00:21]} 65. Ng6 {[%emt 0:00:41]} Ke6 {[%emt 0:00:22]} 66. h4 {[%emt 0:00:15]} Kf6 {[%emt 0:00:39]} 67. Nf4 {[%emt 0:00:36]} g5 {[%emt 0:04:09]} 68. Nd5+ {[%emt 0:01:14]} Kg6 {[%emt 0:01:06]} 69. Ne7+ {[%emt 0:00:35]} Kf6 {[%emt 0:01:37]} 70. Nf5 {[%emt 0:00:05]} Kg6 {[%emt 0:00:44]} 71. f3 {[%emt 0:01:44]} gxh4 {[%emt 0:01:15]} 72. Nxh4+ {[%emt 0:00:05]} Kf6 {[%emt 0:00:15]} 73. Nf5 {[%emt 0:01:07]} Kg6 {[%emt 0:00:29]} 74. Ne3 {[%emt 0:00:28]} Bc3 {[%emt 0:00:20]} 75. f4 {[%emt 0:00:25]} h5 {[%emt 0:00:38]} 76. Ng2 {[%emt 0:00:44]} Kf6 {[%emt 0:00:16]} 77. Nh4 {[%emt 0:00:35]} Be1 {[%emt 0:00:23]} 78. Kf3 {[%emt 0:00:15]} Ke6 {[%emt 0:00:15]} 79. Ng2 {[%emt 0:00:07]} Bd2 {[%emt 0:00:19]} 80. Ne3 {[%emt 0:00:21]} Bc1 {[%emt 0:00:35]} 81. Ke4 {[%emt 0:00:16]} Kf6 {[%emt 0:00:29]} 82. Nd5+ {[%emt 0:01:00]} Ke6 {[%emt 0:00:57]} 83. f5+ {[%emt 0:00:00]} Kf7 {[%emt 0:01:13]} 84. Nf4 {[%emt 0:00:00]} Kf6 {[%emt 0:00:06]} 85. Nxh5+ {[%emt 0:00:00]} Kg5 {[%emt 0:00:12]} 86. Nf4 {[%emt 0:02:36]} Bxf4 {[%emt 0:00:09]} 87. gxf4+ {[%emt 0:00:11]} Kf6 {[%emt 0:00:03]} 88. Ke3 {[%emt 0:00:39]} Kxf5 {[%emt 0:00:30]} 89. Kf3 {[%emt 0:00:00]} Kf6 {[%emt 0:00:05]} 90. Ke4 {[%emt 0:00:09]} Ke6 {[%emt 0:00:00]} 91. f5+ {[%emt 0:00:05]} Kf6 {[%emt 0:00:07]} 92. Kf4 {[%emt 0:00:30]} Kf7 {[%emt 0:00:00]} 93. Ke5 {[%emt 0:00:00]} Ke7 {[%emt 0:00:06]} 94. f6+ {[%emt 0:00:00]} Kf7 {[%emt 0:00:06]} 95. Kf5 {[%emt 0:00:00]} Kf8 {[%emt 0:00:30]} 96. Ke6 {[%emt 0:00:00]} Ke8 {[%emt 0:00:00]} 97. f7+ {[%emt 0:00:00]} Kf8 {[%emt 0:00:00]} 98. Kf6 {[%emt 0:00:01]} 1/2-1/2

[Event "22nd ECCC Women 2017"]
[Site "Antalya"]
[Date "2017.10.11"]
[Round "3"]
[White "Caglar, Sila"]
[Black "Klinova, Masha"]
[Result "1-0"]
[ECO "B06"]
[WhiteElo "2153"]
[BlackElo "2289"]
[Annotator "ChessBase"]
[PlyCount "60"]
[EventType "team-tourn"]
[EventCountry "TUR"]
[WhiteTeam "Marmara"]
[BlackTeam "Beer Sheva"]
[TimeControl "40/5400+30:1800+30"]

1. e4 {[%emt 0:00:30]} d6 {[%emt 0:01:00]} 2. d4 {[%emt 0:00:30]} g6 {[%emt 0:00:30]} 3. Nc3 {[%emt 0:00:30]} Bg7 {[%emt 0:00:30]} 4. Be3 {[%emt 0:00:00]} c6 {[%emt 0:00:30]} 5. f3 {[%emt 0:00:00]} Nd7 {[%emt 0:00:30]} 6. Qd2 {[%emt 0:00:30]} b5 {[%emt 0:02:30]} 7. g4 {[%emt 0:02:30]} Nb6 {[%emt 0:05:30]} 8. h4 {[%emt 0:02:30]} h5 {[%emt 0:00:00]} 9. g5 {[%emt 0:01:30]} Qc7 {[%emt 0:08:00]} 10. f4 {[%emt 0:29:30]} e6 {[%emt 0:28:30]} 11. Nf3 {[%emt 0:16:30]} Ne7 {[%emt 0:01:30]} 12. b3 {[%emt 0:13:30]} b4 {[%emt 0:07:30]} 13. Ne2 {[%emt 0:00:30]} c5 {[%emt 0:02:30]} 14. Rd1 {[%emt 0:02:30]} Bb7 {[%emt 0:03:30]} 15. Ng3 {[%emt 0:02:30]} O-O {[%emt 0:06:30]} 16. Be2 {[%emt 0:07:28]} Rac8 {[%emt 0:14:59]} 17. O-O {[%emt 0:01:46]} Rfd8 {[%emt 0:03:50]} 18. dxc5 {[%emt 0:06:37]} dxc5 {[%emt 0:00:12]} 19. Qe1 {[%emt 0:00:23]} Rxd1 {[%emt 0:00:34]} 20. Bxd1 {[%emt 0:00:44]} Nd7 {[%emt 0:02:59]} 21. Be2 {[%emt 0:01:44]} Nc6 {[%emt 0:04:32]} 22. Qf2 {[%emt 0:01:07]} Nd4 {[%emt 0:00:41]} 23. Nxd4 {[%emt 0:02:21]} cxd4 {[%emt 0:00:05]} 24. Bxd4 {[%emt 0:00:08]} Bxd4 {[%emt 0:02:03]} 25. Qxd4 {[%emt 0:00:01]} Qc5 {[%emt 0:00:00]} 26. Rd1 {[%emt 0:04:24]} a5 {[%emt 0:00:14]} 27. f5 {[%emt 0:01:10]} exf5 {[%emt 0:03:04]} 28. exf5 {[%emt 0:01:38]} Qc6 {[%emt 0:01:25]} 29. Bf1 {[%emt 0:00:43]} Nc5 {[%emt 0:00:45]} 30. fxg6 {[%emt 0:00:22]} Qxg6 {[%emt 0:01:07]} 1-0

[Event "22nd ECCC Women 2017"]
[Site "Antalya"]
[Date "2017.10.12"]
[Round "3"]
[White "Arda, Cagil Irmak"]
[Black "Neuhauser, Salome"]
[Result "1-0"]
[ECO "B55"]
[WhiteElo "2040"]
[BlackElo "2140"]
[Annotator "ChessBase"]
[PlyCount "127"]
[EventType "team-tourn"]
[EventCountry "TUR"]
[WhiteTeam "Anatolia"]
[BlackTeam "Mulhouse Philidor"]
[TimeControl "40/5400+30:1800+30"]

1. e4 {[%emt 0:00:30]} c5 {[%emt 0:01:00]} 2. Nf3 {[%emt 0:00:30]} d6 {[%emt 0:00:30]} 3. d4 {[%emt 0:00:30]} cxd4 {[%emt 0:00:30]} 4. Nxd4 {[%emt 0:00:30]} Nf6 {[%emt 0:00:30]} 5. f3 {[%emt 0:00:30]} e5 {[%emt 0:00:30]} 6. Nb3 {[%emt 0:00:30]} d5 {[%emt 0:00:30]} 7. Bg5 {[%emt 0:00:30]} d4 {[%emt 0:00:00]} 8. c3 {[%emt 0:00:00]} Nc6 {[%emt 0:00:00]} 9. Bb5 {[%emt 0:02:00]} h6 {[%emt 0:00:00]} 10. Bh4 {[%emt 0:14:30]} Qb6 {[%emt 0:01:00]} 11. Bxc6+ {[%emt 0:09:30]} bxc6 {[%emt 0:00:00]} 12. cxd4 {[%emt 0:02:30]} Bb4+ {[%emt 0:02:00]} 13. Nc3 {[%emt 0:03:30]} Ba6 {[%emt 0:01:30]} 14. Bf2 {[%emt 0:05:30]} Rd8 {[%emt 0:05:30]} 15. a3 {[%emt 0:03:30]} Be7 {[%emt 0:04:30]} 16. Qc2 {[%emt 0:14:30]} exd4 {[%emt 0:03:30]} 17. Na4 {[%emt 0:00:30]} Qc7 {[%emt 0:09:30]} 18. Nxd4 {[%emt 0:07:30]} O-O {[%emt 0:15:30]} 19. Qxc6 {[%emt 0:08:30]} Qe5 {[%emt 0:31:30]} 20. Qxa6 {[%emt 0:03:30]} Nxe4 {[%emt 0:00:30]} 21. fxe4 {[%emt 0:06:26]} Qxe4+ {[%emt 0:05:16]} 22. Kf1 {[%emt 0:06:52]} Rxd4 {[%emt 0:01:55]} 23. Bxd4 {[%emt 0:05:39]} Qxd4 {[%emt 0:00:05]} 24. Qe2 {[%emt 0:01:44]} Qf4+ {[%emt 0:01:24]} 25. Qf3 {[%emt 0:01:26]} Qxa4 {[%emt 0:00:05]} 26. Re1 {[%emt 0:00:59]} Bf6 {[%emt 0:00:39]} 27. b4 {[%emt 0:00:38]} Rc8 {[%emt 0:01:05]} 28. g3 {[%emt 0:00:33]} Rc2 {[%emt 0:03:01]} 29. Qa8+ {[%emt 0:00:42]} Kh7 {[%emt 0:00:30]} 30. Qe4+ {[%emt 0:00:00]} g6 {[%emt 0:00:00]} 31. Re2 {[%emt 0:00:40]} Rxe2 {[%emt 0:05:06]} 32. Kxe2 {[%emt 0:00:29]} Qxa3 {[%emt 0:01:00]} 33. Rd1 {[%emt 0:00:29]} a5 {[%emt 0:01:12]} 34. Qd5 {[%emt 0:00:47]} axb4 {[%emt 0:02:03]} 35. Qxf7+ {[%emt 0:00:46]} Bg7 {[%emt 0:00:00]} 36. Rd3 {[%emt 0:00:08]} Qb2+ {[%emt 0:00:23]} 37. Rd2 {[%emt 0:00:16]} Qe5+ {[%emt 0:02:30]} 38. Kf2 {[%emt 0:00:18]} h5 {[%emt 0:00:26]} 39. Re2 {[%emt 0:00:53]} Qf6+ {[%emt 0:04:05]} 40. Qxf6 {[%emt 0:00:00]} Bxf6 {[%emt 0:00:15]} 41. Kf3 {[%emt 0:05:45]} b3 {[%emt 0:00:30]} 42. Re6 {[%emt 0:00:30]} b2 {[%emt 0:01:30]} 43. Rb6 {[%emt 0:00:30]} g5 {[%emt 0:05:30]} 44. Ke4 {[%emt 0:01:30]} Kg6 {[%emt 0:00:00]} 45. h3 {[%emt 0:00:00]} g4 {[%emt 0:11:21]} 46. hxg4 {[%emt 0:08:46]} hxg4 {[%emt 0:00:23]} 47. Kf4 {[%emt 0:00:12]} Kf7 {[%emt 0:05:00]} 48. Kf5 {[%emt 0:00:45]} Bd4 {[%emt 0:00:53]} 49. Rb7+ {[%emt 0:00:05]} Ke8 {[%emt 0:00:06]} 50. Kxg4 {[%emt 0:00:10]} Kd8 {[%emt 0:00:00]} 51. Kf5 {[%emt 0:01:10]} Kc8 {[%emt 0:00:00]} 52. Rb3 {[%emt 0:01:59]} Kd7 {[%emt 0:00:05]} 53. Ke4 {[%emt 0:01:18]} Bf6 {[%emt 0:00:02]} 54. Kd5 {[%emt 0:00:00]} Kc7 {[%emt 0:00:20]} 55. g4 {[%emt 0:00:25]} Kd7 {[%emt 0:02:16]} 56. Rb7+ {[%emt 0:00:52]} Kc8 {[%emt 0:00:06]} 57. Kc6 {[%emt 0:00:14]} Kd8 {[%emt 0:00:07]} 58. Kd6 {[%emt 0:00:44]} Kc8 {[%emt 0:00:07]} 59. Rb5 {[%emt 0:00:13]} Bg7 {[%emt 0:00:29]} 60. g5 {[%emt 0:00:36]} Bf8+ {[%emt 0:00:10]} 61. Ke6 {[%emt 0:00:00]} Bg7 {[%emt 0:00:10]} 62. Kf7 {[%emt 0:00:00]} Bd4 {[%emt 0:01:40]} 63. g6 {[%emt 0:00:20]} Kc7 {[%emt 0:00:00]} 64. g7 {[%emt 0:00:00]} 1-0

[Event "22nd ECCC Women 2017"]
[Site "Antalya"]
[Date "2017.10.12"]
[Round "3"]
[White "Ozbay, Ece"]
[Black "Ovechkin, Lilia"]
[Result "1-0"]
[ECO "B01"]
[WhiteElo "1998"]
[BlackElo "1779"]
[Annotator "NA"]
[PlyCount "77"]
[EventType "team-tourn"]
[EventCountry "TUR"]
[WhiteTeam "Marmara"]
[BlackTeam "Beer Sheva"]
[TimeControl "40/5400+30:1800+30"]

1. e4 {[%emt 0:00:30]} d5 {[%emt 0:01:00]} 2. exd5 {[%emt 0:00:00]} Qxd5 {[%emt 0:04:30]} 3. Nc3 {[%emt 0:00:00]} Qd6 {[%emt 0:04:30]} 4. d4 {[%emt 0:08:30]} Nf6 {[%emt 0:01:30]} 5. g3 {[%emt 0:05:30]} c6 {[%emt 0:03:30]} 6. Bf4 {[%emt 0:03:30]} Qb4 {[%emt 0:04:30]} 7. a3 {[%emt 0:02:30]} Qa5 {[%emt 0:03:30]} 8. Bg2 {[%emt 0:07:30]} e6 {[%emt 0:03:30]} 9. Qe2 {[%emt 0:11:30]} Be7 {[%emt 0:02:30]} 10. Nf3 {[%emt 0:04:30]} O-O {[%emt 0:04:30]} 11. Ne5 {[%emt 0:05:30]} Nd5 {[%emt 0:07:30]} 12. Bd2 {[%emt 0:00:30]} Nxc3 {[%emt 0:13:30]} 13. Bxc3 {[%emt 0:00:30]} Qc7 {[%emt 0:00:30]} 14. h4 {[%emt 0:07:30]} f6 {[%emt 0:05:30]} 15. Nd3 {[%emt 0:00:30]} Bd6 {[%emt 0:00:30]} 16. f4 {[%emt 0:02:30]} Bd7 {[%emt 0:05:30]} 17. O-O-O {[%emt 0:03:30]} Na6 {[%emt 0:01:30]} 18. Bh3 {[%emt 0:06:30]} Rae8 {[%emt 0:00:30]} 19. Rhe1 {[%emt 0:00:30]} Qc8 {[%emt 0:00:30]} 20. g4 {[%emt 0:01:30]} Nc7 {[%emt 0:02:30]} 21. g5 {[%emt 0:05:30]} fxg5 {[%emt 0:03:30]} 22. fxg5 {[%emt 0:00:00]} Nd5 {[%emt 0:02:30]} 23. Bd2 {[%emt 0:00:00]} Qc7 {[%emt 0:01:30]} 24. Ne5 {[%emt 0:01:30]} Bc8 {[%emt 0:04:51]} 25. Rf1 {[%emt 0:03:53]} Qe7 {[%emt 0:00:38]} 26. g6 {[%emt 0:01:49]} h6 {[%emt 0:01:23]} 27. Nf7 {[%emt 0:01:05]} Bxa3 {[%emt 0:00:37]} 28. Qh5 {[%emt 0:01:53]} Nf6 {[%emt 0:02:13]} 29. Rxf6 {[%emt 0:01:28]} Bxb2+ {[%emt 0:01:15]} 30. Kxb2 {[%emt 0:00:27]} Qxf6 {[%emt 0:00:27]} 31. Bg5 {[%emt 0:00:26]} Rxf7 {[%emt 0:04:57]} 32. Bxf6 {[%emt 0:00:54]} Rxf6 {[%emt 0:00:20]} 33. Qe5 {[%emt 0:01:58]} Rd8 {[%emt 0:04:04]} 34. h5 {[%emt 0:00:31]} Rd5 {[%emt 0:00:18]} 35. Qc7 {[%emt 0:00:03]} Bd7 {[%emt 0:01:42]} 36. Rf1 {[%emt 0:01:28]} Rxf1 {[%emt 0:02:25]} 37. Bxf1 {[%emt 0:00:30]} Kf8 {[%emt 0:00:08]} 38. Bc4 {[%emt 0:01:07]} Rxd4 {[%emt 0:00:33]} 39. Qd8+ {[%emt 0:00:11]} 1-0

[Event "22nd ECCC Women 2017"]
[Site "Antalya"]
[Date "2017.10.11"]
[Round "3"]
[White "Sahin, Handenur"]
[Black "Kaplan, Ebru"]
[Result "1-0"]
[ECO "C84"]
[WhiteElo "1960"]
[BlackElo "2001"]
[Annotator "NA"]
[PlyCount "85"]
[EventType "team-tourn"]
[EventCountry "TUR"]
[WhiteTeam "Aegean"]
[BlackTeam "Mediterranean"]
[TimeControl "40/5400+30:1800+30"]

1. e4 {[%emt 0:00:30]} e5 {[%emt 0:01:00]} 2. Nf3 {[%emt 0:00:30]} Nc6 {[%emt 0:00:30]} 3. Bb5 {[%emt 0:00:30]} a6 {[%emt 0:00:00]} 4. Ba4 {[%emt 0:00:00]} Nf6 {[%emt 0:00:00]} 5. d3 {[%emt 0:00:00]} d6 {[%emt 0:01:30]} 6. c3 {[%emt 0:00:30]} Be7 {[%emt 0:00:30]} 7. O-O {[%emt 0:00:30]} O-O {[%emt 0:02:30]} 8. Re1 {[%emt 0:00:30]} Re8 {[%emt 0:03:30]} 9. Nbd2 {[%emt 0:02:30]} b5 {[%emt 0:03:30]} 10. Bc2 {[%emt 0:00:30]} Bf8 {[%emt 0:03:30]} 11. Nf1 {[%emt 0:09:30]} h6 {[%emt 0:04:30]} 12. d4 {[%emt 0:08:30]} Bg4 {[%emt 0:17:30]} 13. d5 {[%emt 0:08:30]} Ne7 {[%emt 0:09:30]} 14. h3 {[%emt 0:07:30]} Bh5 {[%emt 0:00:00]} 15. Ng3 {[%emt 0:07:30]} Bg6 {[%emt 0:00:00]} 16. Nh4 {[%emt 0:00:30]} Bh7 {[%emt 0:02:30]} 17. Qf3 {[%emt 0:01:30]} Nexd5 {[%emt 0:08:30]} 18. Nhf5 {[%emt 0:05:30]} Nb6 {[%emt 0:04:30]} 19. Bb3 {[%emt 0:04:30]} a5 {[%emt 0:05:30]} 20. a3 {[%emt 0:06:30]} Rb8 {[%emt 0:07:30]} 21. Rd1 {[%emt 0:07:30]} c5 {[%emt 0:07:13]} 22. Ne3 {[%emt 0:10:03]} c4 {[%emt 0:01:49]} 23. Ba2 {[%emt 0:03:25]} Na4 {[%emt 0:01:54]} 24. Nd5 {[%emt 0:02:49]} Nxd5 {[%emt 0:02:01]} 25. Rxd5 {[%emt 0:00:07]} Qf6 {[%emt 0:04:16]} 26. Qe2 {[%emt 0:04:55]} Qe6 {[%emt 0:00:56]} 27. Rxb5 {[%emt 0:02:38]} Nb6 {[%emt 0:05:34]} 28. Be3 {[%emt 0:01:25]} d5 {[%emt 0:02:08]} 29. exd5 {[%emt 0:01:44]} Nxd5 {[%emt 0:00:09]} 30. Qxc4 {[%emt 0:00:21]} Nxe3 {[%emt 0:01:08]} 31. fxe3 {[%emt 0:02:02]} Qd7 {[%emt 0:00:49]} 32. Rxb8 {[%emt 0:01:26]} Rxb8 {[%emt 0:00:07]} 33. Rf1 {[%emt 0:00:24]} Bg6 {[%emt 0:00:39]} 34. b4 {[%emt 0:00:27]} Rc8 {[%emt 0:00:51]} 35. Qa6 {[%emt 0:00:51]} Rxc3 {[%emt 0:00:40]} 36. Qxg6 {[%emt 0:00:37]} Rc7 {[%emt 0:01:08]} 37. Nh5 {[%emt 0:00:48]} Kh8 {[%emt 0:00:28]} 38. Bxf7 {[%emt 0:00:47]} Rc6 {[%emt 0:00:33]} 39. Qe4 {[%emt 0:00:27]} Rc8 {[%emt 0:00:30]} 40. Qxe5 {[%emt 0:00:00]} Qa7 {[%emt 0:01:07]} 41. Rf6 {[%emt 0:07:44]} Rc1+ {[%emt 0:04:30]} 42. Kh2 {[%emt 0:00:30]} Kh7 {[%emt 0:00:30]} 43. Bg6+ {[%emt 0:00:30]} 1-0

[Event "22nd ECCC Women 2017"]
[Site "Antalya"]
[Date "2017.10.11"]
[Round "3"]
[White "Brusilovski, Lena"]
[Black "Hereklioglu, Sude"]
[Result "0-1"]
[ECO "B28"]
[WhiteElo "1881"]
[BlackElo "2165"]
[Annotator "ChessBase"]
[PlyCount "50"]
[EventType "team-tourn"]
[EventCountry "TUR"]
[WhiteTeam "Beer Sheva"]
[BlackTeam "Marmara"]
[TimeControl "40/5400+30:1800+30"]

1. e4 {[%emt 0:00:30]} c5 {[%emt 0:01:00]} 2. Nf3 {[%emt 0:01:30]} a6 {[%emt 0:00:00]} 3. d4 {[%emt 0:01:30]} cxd4 {[%emt 0:00:00]} 4. Nxd4 {[%emt 0:00:30]} Nf6 {[%emt 0:00:30]} 5. Nc3 {[%emt 0:03:30]} e5 {[%emt 0:00:30]} 6. Nf3 {[%emt 0:02:30]} Bb4 {[%emt 0:02:30]} 7. Bd2 {[%emt 0:00:30]} d6 {[%emt 0:02:30]} 8. Bd3 {[%emt 0:01:30]} Nc6 {[%emt 0:00:30]} 9. a3 {[%emt 0:02:30]} Bxc3 {[%emt 0:06:30]} 10. Bxc3 {[%emt 0:00:30]} Bg4 {[%emt 0:01:30]} 11. h3 {[%emt 0:01:30]} Bh5 {[%emt 0:02:30]} 12. g4 {[%emt 0:01:30]} Bg6 {[%emt 0:00:30]} 13. Qe2 {[%emt 0:00:30]} Nd7 {[%emt 0:06:30]} 14. O-O-O {[%emt 0:03:30]} Nc5 {[%emt 0:03:30]} 15. Nh2 {[%emt 0:10:30]} Na4 {[%emt 0:10:30]} 16. Be1 {[%emt 0:08:30]} Nd4 {[%emt 0:02:30]} 17. Qd2 {[%emt 0:01:30]} Nc5 {[%emt 0:01:30]} 18. Qe3 {[%emt 0:08:30]} Rc8 {[%emt 0:04:30]} 19. Kb1 {[%emt 0:12:30]} Nxd3 {[%emt 0:04:30]} 20. cxd3 {[%emt 0:00:30]} Nc2 {[%emt 0:00:30]} 21. Qa7 {[%emt 0:01:30]} Qc7 {[%emt 0:02:30]} 22. Bd2 {[%emt 0:04:30]} O-O {[%emt 0:09:30]} 23. Be3 {[%emt 0:02:30]} Nxa3+ {[%emt 0:00:30]} 24. bxa3 {[%emt 0:01:30]} Qc2+ {[%emt 0:00:30]} 25. Ka1 {[%emt 0:00:30]} Rc3 {[%emt 0:00:30]} 0-1

[Event "22nd ECCC Women 2017"]
[Site "Antalya"]
[Date "2017.10.11"]
[Round "3"]
[White "Celik, Eda"]
[Black "Can, Isil"]
[Result "1-0"]
[ECO "D00"]
[WhiteElo "1880"]
[BlackElo "1791"]
[Annotator "NA"]
[PlyCount "33"]
[EventType "team-tourn"]
[EventCountry "TUR"]
[WhiteTeam "Aegean"]
[TimeControl "40/5400+30:1800+30"]

1. d4 {[%emt 0:00:30]} d5 {[%emt 0:01:00]} 2. Bf4 {[%emt 0:00:30]} c6 {[%emt 0:00:30]} 3. e3 {[%emt 0:03:30]} Bf5 {[%emt 0:00:00]} 4. c4 {[%emt 0:00:30]} e6 {[%emt 0:00:00]} 5. Nc3 {[%emt 0:00:30]} Nf6 {[%emt 0:00:30]} 6. Qb3 {[%emt 0:02:30]} Qb6 {[%emt 0:00:30]} 7. c5 {[%emt 0:00:30]} Qxb3 {[%emt 0:01:30]} 8. axb3 {[%emt 0:00:30]} a6 {[%emt 0:04:30]} 9. Nf3 {[%emt 0:02:30]} h6 {[%emt 0:02:30]} 10. h3 {[%emt 0:00:30]} g5 {[%emt 0:02:30]} 11. Bh2 {[%emt 0:06:30]} Bg7 {[%emt 0:02:30]} 12. b4 {[%emt 0:02:30]} Ne4 {[%emt 0:16:30]} 13. Nd2 {[%emt 0:17:30]} Nxd2 {[%emt 0:09:30]} 14. Kxd2 {[%emt 0:00:00]} Ke7 {[%emt 0:05:30]} 15. Bd6+ {[%emt 0:05:00]} Kd7 {[%emt 0:00:30]} 16. Na4 {[%emt 0:02:30]} Kd8 {[%emt 0:01:30]} 17. Nb6 {[%emt 0:00:30]} 1-0

[Event "22nd ECCC Women 2017"]
[Site "Antalya"]
[Date "2017.10.12"]
[Round "3"]
[White "Ince, Safiye Oyku"]
[Black "Ayan, Bengu Sena"]
[Result "0-1"]
[ECO "C00"]
[WhiteElo "1861"]
[BlackElo "1888"]
[Annotator "NA RC"]
[PlyCount "66"]
[EventType "team-tourn"]
[EventCountry "TUR"]
[WhiteTeam "Mediterranean"]
[BlackTeam "Aegean"]
[TimeControl "40/5400+30:1800+30"]

1. e4 {[%emt 0:00:30]} e6 {[%emt 0:01:00]} 2. b3 {[%emt 0:00:30]} d5 {[%emt 0:00:30]} 3. Bb2 {[%emt 0:00:30]} dxe4 {[%emt 0:00:30]} 4. Nc3 {[%emt 0:00:30]} Nf6 {[%emt 0:00:00]} 5. Qe2 {[%emt 0:00:00]} Bb4 {[%emt 0:00:00]} 6. O-O-O {[%emt 0:00:00]} Bxc3 {[%emt 0:01:30]} 7. dxc3 {[%emt 0:00:00]} Qe7 {[%emt 0:00:00]} 8. g4 {[%emt 0:00:00]} h5 {[%emt 0:14:00]} 9. g5 {[%emt 0:16:30]} Ng4 {[%emt 0:03:30]} 10. Nh3 {[%emt 0:00:00]} Bd7 {[%emt 0:09:30]} 11. Bg2 {[%emt 0:00:00]} Nc6 {[%emt 0:12:30]} 12. Bxe4 {[%emt 0:02:30]} O-O-O {[%emt 0:03:30]} 13. b4 {[%emt 0:08:30]} f6 {[%emt 0:05:30]} 14. Qb5 {[%emt 0:10:30]} a6 {[%emt 0:09:30]} 15. Qe2 {[%emt 0:24:30]} fxg5 {[%emt 0:05:30]} 16. b5 {[%emt 0:00:30]} axb5 {[%emt 0:00:30]} 17. Qxb5 {[%emt 0:00:30]} Nf6 {[%emt 0:01:30]} 18. Bg2 {[%emt 0:01:30]} Nd5 {[%emt 0:01:30]} 19. c4 {[%emt 0:02:30]} Nb6 {[%emt 0:07:30]} 20. c5 {[%emt 0:00:30]} Nd5 {[%emt 0:02:30]} 21. c4 {[%emt 0:01:30]} Ndb4 {[%emt 0:05:12]} 22. Ba3 {[%emt 0:03:30]} Nxa2+ {[%emt 0:02:56]} 23. Kb2 {[%emt 0:00:30]} Nc3 {[%emt 0:01:53]} 24. Kxc3 {[%emt 0:02:30]} Qf6+ {[%emt 0:00:14]} 25. Kd2 {[%emt 0:00:30]} Be8+ {[%emt 0:04:32]} 26. Kc1 {[%emt 0:01:30]} Qc3+ {[%emt 0:03:16]} 27. Kb1 {[%emt 0:00:30]} Bg6+ {[%emt 0:00:04]} 28. Ka2 {[%emt 0:00:30]} Rxd1 {[%emt 0:00:34]} 29. Rxd1 {[%emt 0:00:30]} Qc2+ {[%emt 0:00:06]} 30. Bb2 {[%emt 0:02:30]} Qxd1 {[%emt 0:00:27]} 31. Bxc6 {[%emt 0:00:30]} bxc6 {[%emt 0:01:17]} 32. Qa6+ {[%emt 0:00:30]} Kd7 {[%emt 0:01:02]} 33. Nxg5 {[%emt 0:01:30]} Rb8 {[%emt 0:00:49]} 0-1